Cogmind - Beta 14 @@@ ROGUE MODE // 2025.01.11 @ 04:39:07 Player: Byrnorthil Result: Destroyed by D-53 Grenadier with Mini Grenade Launcher Performance ------------- Evolutions (0) 0 Regions Visited (2) 400 Robots Destroyed (30) 150 Value Destroyed (747) 747 Prototype IDs (0) 0 Alien Tech Used (0) 0 Bonus (0) 0 TOTAL SCORE: 1297 Bonus ------- None Cogmind --------- Core Integrity 0/250 Matter 240/300 Energy 36/250 System Corruption 3% Temperature Cool (38) Movement Treading (320) Ox2 Location -10/Mines Parts ------- > --- POWER (1) -------- Ion Engine > --- PROPULSION (2) --- Light Treads > --- UTILITY (2) ------ High-capacity Storage Unit Transport Network Coupler > --- WEAPON (2) ------- Light EM Pulse Cannon Autogun > --- INVENTORY (20) --- Ion Engine Light Angular Momentum Engine Heat Sink Improved Heat Sink Small Storage Unit High-capacity Storage Unit Seismic Detector Seismic Detector Tractor Beam Autogun Autogun Autogun Plasma Cutter Peak State ------------ > --- POWER ------------ Light Nuclear Core > --- PROPULSION ------- Light Treads Light Treads > --- UTILITY ---------- High-capacity Storage Unit Transport Network Coupler > --- WEAPON ----------- Light EM Pulse Cannon Light EM Pulse Cannon > --- INVENTORY -------- Ion Engine Ion Engine Light Angular Momentum Engine Light Treads Improved Heat Sink Small Storage Unit High-capacity Storage Unit Seismic Detector Seismic Detector Tractor Beam Light EM Pulse Cannon Light EM Pulse Cannon Autogun Autogun Autogun Autogun Plasma Cutter [Rating: 14] Favorites ----------- Power Ion Engine Engine Ion Engine Power Core Light Nuclear Core Propulsion Light Treads Treads Light Treads Leg Aluminum Leg Utility High-capacity Storage Unit Device Seismic Detector Storage High-capacity Storage Unit Processor Transport Network Coupler Weapon Light EM Pulse Cannon Energy Cannon Light EM Pulse Cannon Ballistic Gun Light Assault Rifle Build | -11 -10 -10 ------- Run | Yrd Mat Min Slots Evolved . | . . . Power . | . . . Propulsion . | . . . Utility . | . . . Weapon . | . . . Parts Attached 33 | 6 22 5 Power 6 | 1 4 1 Engine 5 | 1 3 1 Core 1 | . 1 . Reactor . | . . . Propulsion 9 | 2 6 1 Treads 7 | . 6 1 Leg 2 | 2 . . Wheel . | . . . Hover . | . . . Flight . | . . . Utility 6 | 1 5 . Device 2 | . 2 . Storage 3 | 1 2 . Processor 1 | . 1 . Hackware . | . . . Protection . | . . . Artifact . | . . . Weapon 12 | 2 7 3 Energy Gun . | . . . Energy Cannon 5 | . 3 2 Ballistic Gun 7 | 2 4 1 Ballistic Cannon . | . . . Launcher . | . . . Special Weapon . | . . . Impact Weapon . | . . . Slashing Weapon . | . . . Piercing Weapon . | . . . Special Melee Weapon . | . . . Unidentified Prototypes . | . . . Parts Lost 11 | . 5 6 Power 2 | . 1 1 Propulsion 4 | . 2 2 Utility . | . . . Weapon 5 | . 2 3 Highest Loss Streak 6 | . 2 6 To Critical Strikes . | . . . Average Slot Usage (%) 99 | . 99 99 Engine 7 | . 8 . Core 6 | . 5 13 Treads 25 | . 25 27 Leg 1 | . 2 . Device 3 | . 3 . Storage 14 | . 14 14 Processor 10 | . 10 14 Energy Cannon 14 | . 12 27 Ballistic Gun 13 | . 15 . Peak Build Rating 14 | 6 13 14 Average Rating 10 | 4 10 13 On Entrance 6 | . 6 13 Naked Turns . | . . . Heaviest Build 53 | 11 53 53 Greatest Support 40 | 20 40 40 Greatest Overweight (x) 3 | 3 1 1 Average Overweight (x) . | . . 1 Largest Inventory Capacity 20 | 8 20 20 Average Capacity 18 | 7 19 20 Most Carried 19 | 4 19 18 Average Carried 14 | 1 14 16 Final Capacity 20 | 8 20 20 Final Carried 16 | 4 16 13 Class Distribution -------------------- 57% | Mutant 42% | Scavenger-Mutant Dominant Class ---------------- Mutant | -10/Materials Scavenger-Mutant | -10/Mines Resources | -11 -10 -10 ----------- Run | Yrd Mat Min Matter Collected 764 | 204 543 17 Remotely 40 | . 40 . Salvage Created 1123 | . 944 179 Parts 76 | . 69 7 Haulers Intercepted 2 | . 2 . Recyclers Shooed 2 | . 2 . Parts Field Recycled . | . . . Retrieved Matter . | . . . Parts Self-Destructed . | . . . Prevented . | . . . Kills | -11 -10 -10 ------- Run | Yrd Mat Min Combat Hostiles Destroyed 23 | . 21 2 Guns 17 | . 17 . Cannons 3 | . 1 2 AOE 2 | . 2 . Classes Destroyed 6 | . 5 1 Worker 1 | . 1 . Hauler 2 | . 2 . Recycler 1 | . . 1 Watcher 3 | . 3 . Swarmer 5 | . 5 . Grunt 18 | . 16 2 Best Kill Streak 7 | . 7 2 Combat Bots Only 5 | . 5 2 Max Kills in Single Turn 2 | . 2 1 Gunslinging 1 | . 1 . Exploded 2 | . 2 . Melee . | . . . Uniques/NPCs Destroyed . | . . . Combat | -11 -10 -10 -------- Run | Yrd Mat Min Hostile Shots Fired 156 | . 131 25 Missed 44 | . 44 . Damage Taken 1908 | . 1023 885 Core 261 | . 179 82 Absorbed by Shields . | . . . Regen/Repaired (Parts) 221 | . 221 . Core Remaining (%) 100 | 100 . . Volleys Fired 107 | . 96 11 Largest 2 | . 2 2 Hottest 112 | . 112 112 Shots Fired 209 | . 190 19 Gun 170 | . 166 4 Cannon 39 | . 24 15 Launcher . | . . . Special . | . . . Kinetic 170 | . 166 4 Thermal . | . . . Explosive . | . . . Electromagnetic 39 | . 24 15 Robot Hit Streak 10 | . 10 7 Robot Miss Streak 4 | . 4 2 Penetration Max . | . . . Secondary Targets 3 | . 3 . Max Gunslinging Chain 1 | . 1 . Shots Hit Robots 131 | . 118 13 Core Hits 51 | . 47 4 Critical Kills 2 | . 2 . Critical Parts Destroyed . | . . . Critical Strikes 2 | . 2 . Destroy 2 | . 2 . Melee Attacks . | . . . Impact . | . . . Slashing . | . . . Piercing . | . . . Sneak Attacks . | . . . Combat Hostiles . | . . . Follow-up Attacks . | . . . Damage Inflicted 1780 | . 1504 276 Guns 1129 | . 1095 34 Cannons 525 | . 283 242 Explosions 113 | . 113 . Melee . | . . . Ramming 13 | . 13 . Kinetic 1129 | . 1095 34 Thermal 113 | . 113 . Explosive . | . . . Electromagnetic 525 | . 283 242 Impact . | . . . Slashing . | . . . Piercing . | . . . Highest Corruption 3 | . 3 3 Average Corruption 2 | . 2 3 Corruption Purged . | . . . Corruption Blocked . | . . . Effects 17 | . 12 5 Message Errors 2 | . 2 . Matter Fused 5 | . 2 3 Heat Flow Errors 3 | . 2 1 Energy Discharges 2 | . 2 . Data Loss (minor) 1 | . 1 . Data Loss (major) 1 | . . 1 Misfires 2 | . 2 . Alerts 1 | . 1 . Overload Shots . | . . . Overflow Damage 11 | . 11 . Projectiles . | . . . Explosions 11 | . 11 . Melee . | . . . Knockbacks . | . . . Impact . | . . . Kinetic . | . . . Secondary . | . . . Self-Inflicted Damage 36 | . 36 . Shots 1 | . 1 . Rammed 2 | . 2 . Targets Rammed 3 | . 3 . Kicked 1 | . 1 . Crushed . | . . . Highest Temperature 189 | . 189 131 Average Temperature 38 | . 35 50 Received Heat Transfer 504 | . 492 12 Siege Activations . | . . . Robots Corrupted 1 | . 1 . Combat Hostiles 1 | . 1 . Parts Fried 5 | . 5 . Impact Corruptions . | . . . Robots Melted . | . . . Combat Hostiles . | . . . Parts Melted . | . . . Heat Transferred 50 | . 50 . Parts Sabotaged . | . . . Parts Stolen . | . . . Parts Stripped . | . . . Power Chain Reactions 2 | . 2 . Alert | -11 -10 -10 ------- Run | Yrd Mat Min Peak Influence 289 | . 289 93 Initial 48 | . . 48 Average 152 | . 167 81 Maximum Alert Level 1 | . 1 . Low Security (%) 73 | 100 69 100 Level 1 26 | . 30 . Level 2 . | . . . Level 3 . | . . . Level 4 . | . . . Level 5 . | . . . High Security . | . . . Max Security . | . . . Squads Dispatched 7 | . 6 1 Investigation 4 | . 3 1 Extermination . | . . . Reinforcement 3 | . 3 . Assault . | . . . Garrison . | . . . Intercept . | . . . Searches Triggered . | . . . Construction Impeded . | . . . Haulers Reinforced . | . . . Active Scanning Responses . | . . . Cargo Convoy Interrupts . | . . . Stealth | -11 -10 -10 --------- Run | Yrd Mat Min Distress Signals 6 | . 5 1 Communications Jammed . | . . . Distress Signals . | . . . Times Spotted 39 | . 33 6 Peak Tracking Total 6 | . 6 4 Tactical Retreats 2 | . 2 . Traps | -11 -10 -10 ------- Run | Yrd Mat Min Traps Triggered 3 | . 3 . Indirectly . | . . . Trap Hack Attempts . | . . . Triggered . | . . . Disarmed . | . . . Reprogrammed . | . . . Reused . | . . . Traps Extracted . | . . . Installed . | . . . Triggered . | . . . Machines | -11 -10 -10 ---------- Run | Yrd Mat Min Machines Disabled . | . . . Max in Single Turn . | . . . Machines Repaired . | . . . Machines Dismantled . | . . . Machines Sabotaged . | . . . Overloaded Fab Kills . | . . . Hacking | -11 -10 -10 --------- Run | Yrd Mat Min Machines Accessed 9 | . 8 1 Terminals 5 | . 5 . Fabricators . | . . . Repair Stations 1 | . 1 . Recycling Units 2 | . 2 . Scanalyzers . | . . . Garrison Access . | . . . Total Hacks 30 | . 29 1 Successful 23 | . 22 1 Failed 7 | . 7 . Catastrophic . | . . . Database Lockouts . | . . . Manual 16 | . 16 . Terminals 14 | . 14 . Fabricators . | . . . Repair Stations 11 | . 11 . Recycling Units 4 | . 4 . Scanalyzers . | . . . Garrison Access . | . . . Terminal Hacks 2 | . 1 1 Robot Analysis 1 | . 1 . Open Door 1 | . . 1 Fabricator Hacks . | . . . Repair Station Hacks 10 | . 10 . Scan Component 5 | . 5 . Repair 5 | . 5 . Recycling Unit Hacks 2 | . 2 . Report Inventory 2 | . 2 . Scanalyzer . | . . . Garrison Access Hacks . | . . . Unauthorized Hacks 9 | . 9 . Terminals 7 | . 7 . Botnet 2 | . 2 . Skim 5 | . 5 . Fabricators . | . . . Repair Stations . | . . . Recycling Units 2 | . 2 . Tunnel 2 | . 2 . Scanalyzers . | . . . Garrison Access . | . . . Data Cores Recovered . | . . . Used . | . . . Hacking Detections 8 | . 8 . Full Trace Events . | . . . Feedback Events . | . . . Feedback Blocked . | . . . Robot Schematics Acquired . | . . . Robots Built . | . . . Authchips . | . . . Time . | . . . Total Robot Build Rating . | . . . Part Schematics Acquired . | . . . Parts Built . | . . . Authchips . | . . . Time . | . . . Total Part Build Rating . | . . . Parts Repaired 5 | . 5 . Time 148 | . 148 . Parts Recycled . | . . . Recycled Matter . | . . . Retrieved Matter . | . . . Retrieved Components . | . . . Parts Scanalyzed . | . . . Part Schematics Acquired . | . . . Parts Damaged . | . . . Bothacking | -11 -10 -10 ------------ Run | Yrd Mat Min Used RIF Installer . | . . . Robots Hacked . | . . . Non-combat . | . . . Combat . | . . . Robot Hacks Applied . | . . . Relay Couplers Released . | . . . Fabnet Peak Effective % . | . . . Robots Rewired . | . . . Allies Hacked . | . . . Hacks Repelled . | . . . Allies | -11 -10 -10 -------- Run | Yrd Mat Min Total Allies . | . . . Largest Group . | . . . Highest-Rated Group . | . . . Highest-Rated Ally . | . . . Total Orders . | . . . Ally Attacks . | . . . Total Damage . | . . . Kills . | . . . Allies Corrupted . | . . . Allies Melted . | . . . Intel | -11 -10 -10 ------- Run | Yrd Mat Min Robot Analysis Total 1 | . 1 . Derelict Logs Recovered . | . . . Drone Launches . | . . . Drone Recoveries . | . . . Exploration | -11 -10 -10 ------------- Run | Yrd Mat Min Turns Passed 2404 | 62 2045 297 Spaces Moved 855 | 40 707 108 Core 9 | 9 . . Treads 700 | . 592 108 Legs 146 | 31 115 . Wheels . | . . . Hover . | . . . Flight . | . . . Fastest Speed 50 | 50 120 240 Average Speed 218 | 125 220 240 Slowest Speed 240 | 200 240 240 Overloaded Moves . | . . . Propulsion Burnouts . | . . . Robots Hopped . | . . . Cave-ins Triggered . | . . . Exploration Rate (%) 39 | 3 96 19 Regions Visited 2 Branch Regions 1 Pre-discovered Areas 3 | . 3 . Known Exits Taken . | . . . Unknown Exits Taken 2 | 1 1 . Scrap Searched . | . . . Spaces Dug . | . . . Terrain Destroyed 11 | . 11 . Melee . | . . . Projectile . | . . . AOE 11 | . 11 . Terrain Rammed . | . . . Walls Destroyed . | . . . Machines Disabled . | . . . Actions | -11 -10 -10 --------- Run | Yrd Mat Min Total 1201 | 49 1024 128 Wait 165 | . 163 2 Move 853 | 39 706 108 Hop . | . . . Pick Up 29 | 4 23 2 Fast Attach 10 | 6 4 . Attach 10 | . 5 5 Detach 1 | . 1 . Swap 13 | . 13 . Drop 10 | . 10 . Fire 107 | . 96 11 Melee . | . . . Ram . | . . . Kick 1 | . 1 . Crush 2 | . 2 . Escape Stasis . | . . . Rewire . | . . . Trap . | . . . Miscellaneous . | . . . Route ------- -11/Scrapyard -10/Materials (discovered 5 exits: [*Mat x3] / *Min / Sub) -10/Mines History --------- Turn | Location | Event 15 | -11/Scrapyard | Discovered new exit (range 15) 63 | -11/Scrapyard | Entered Materials 206 | -10/Materials | Discovered new exit (range 8) 304 | -10/Materials | Build established: Mutant 510 | -10/Materials | Discovered new exit (range 9) 686 | -10/Materials | Core integrity fell below 50% 1039 | -10/Materials | Discovered new exit (range 8) 1136 | -10/Materials | Discovered new exit (range 13) 1658 | -10/Materials | Build established: Scavenger-Mutant 1726 | -10/Materials | Loaded intel: 12 trap records 1783 | -10/Materials | Repaired Lgt. Treads 1788 | -10/Materials | Learned Storage emergency access door positions 1817 | -10/Materials | Repaired Autogun 1842 | -10/Materials | Identified exit to Subcaves 1850 | -10/Materials | Repaired Lgt. EM Pulse Cannon 1883 | -10/Materials | Repaired Autogun 1910 | -10/Materials | Repaired Lgt. Treads 1924 | -10/Materials | Learned Storage emergency access door positions 1968 | -10/Materials | Learned location of Subcaves (-10) 2108 | -10/Materials | Entered Mines 2119 | -10/Mines | Met a Derelict shopkeep closing up shop 2332 | -10/Mines | Assembled infested the area 2337 | -10/Mines | Assisted by a Guerilla fighting off Assembled 2387 | -10/Mines | Core integrity fell below 20% 2405 | -10/Mines | Destroyed by D-53 Grenadier with Mini Grenade Launcher Last Messages --------------- 02386_ The unstable cave ceiling collapses. 02386_ U-05 Engineer lays Concrete. 02388_ Lgt. Nuclear Core destroyed. 02388_ Lgt. EM Pulse Cannon destroyed. 02389_ U-05 Engineer builds a Wall. 02391_ System corrupted: Matter fused (-8). 02392_ Lgt. EM Pulse Cannon destroyed. 02392_ U-05 Engineer lays Concrete. 02393_ The unstable cave ceiling collapses. 02393_ U-05 Engineer lays Concrete. 02395_ The unstable cave ceiling collapses. 02395_ U-05 Engineer builds a Wall. 02399_ The unstable cave ceiling collapses. 02399_ Lgt. Treads destroyed. 02399_ U-05 Engineer lays Concrete. 02401_ Lgt. Treads destroyed. 02401_ U-05 Engineer lays Concrete. 02404_ The unstable cave ceiling collapses. 02404_ U-05 Engineer lays Concrete. 02405_ as-74853 destroyed. Map ----- +----------------------------------------------------+ | ???????????????????????????????????????????????? | | ???????????????????????????????????????????????? | | ???????????????????????????????????????????????? | | ???????????????????????????????????????????????? | | ???????????????????????????????????????????????? | | ???????????????????????????????????????????????? | | ???????????????????????????????????????????????? | | ???????????????????????????????????????????????? | | ???????????????????????????????????????????????? | | ???????????????????????????????????????????????? | | ???????????????????????????????????????????????? | | ???????????????????????????????????????????????? | | ???????????????????????????????????????????????? | | ???????????????????????????????????????????????? | | ???????????????????????????????????????????????? | | ???????????????????????????????????????????????? | | ???????????????????????????????????????????????? | | ???????########????????????????????????????????? | | ???????#""""""#????????#####???????????????????? | | ????????/!*!=/#???????## ##??????????????????? | | ????????# #??????### ##?????????????????? | | ????????#= !#????### ####??????????????? | | ???????### ###???# ##?????????????? | | ???##### X ##### ####??????????? | | ???# ## #??????????? | | ???# ## @% ### #??????????? | | ???# ## ##?# #??????????? | | ???# ## ##??# #??????????? | | ???# ## d # ##??# #??????????? | | ???# ## #u ## a#### #??????????? | | ???# ####!d ###### #??????????? | | ???# #?## %! ##?## #### #??????????? | | ???# #??## #??###??# #??????????? | | ???# #???## #???????# #??????????? | | ???######## #####????##" ##???????# #??????????? | | ??????????# #?????????#% #????????# #??????????? | | ??????????# #?????????#" #????????# #??????????? | | ??????????# #?????????#% #????????# ?????????? | | ??????????#=#??########* #????????#####????????? | | ??????????#=#??# = =%= #?????????????????????? | | ??????????#%#??# #########?????????????????????? | | ??????????# #### #?????????????????????????????? | | ??????????#% #?????????????????????????????? | | ??????????#% #####?????????????????????????????? | | ??????????#% #?????????????????????????????????? | | ??????????# #?????????????????????????????????? | | ??????????# #?????????????????????????????????? | | ??????????# ?????????????????????????????????? | | ??????????# ?????????????????????????????????? | | ??????????# ###????????????????????????????????? | +----------------------------------------------------+ Best States ------------- Heat Dissipation 25 Energy Generation 14 Energy Capacity 250 Matter Stores 300 Matter Capacity 300 Sight Range 16 Terrain Scan Density 10 Evasion (%) 55 Recoil Reduction 2 Item Schematics ----------------- None Robot Schematics ------------------ None Fabricated ------------ Nothing Alien Tech Used ----------------- None Achievements -------------- None Challenges ------------ None Game ------ Seed VortexGuidancePlating Manual? 0 Play Time 00:19:19 Cumulative 182.0 hours Start 2025.01.11 @ 04:22:42 End 2025.01.11 @ 04:39:07 Sessions 1 Manual Loads 0 Difficulty Rogue Special Mode None Game No. 56 Rogue 56 Adventurer 0 Explorer 0 Win Type - Total 3 Types 2/0/1/0/0/0/0/0/0 Lore% 60 Gallery% 71 Achievement% 62 Wizard Run 0 Options --------- Layout 0 ASCII 0 Keyboard 1 Movement Arrows Keybinds 0 Fullscreen 2 Font 36/Terminus++ Map View 76x50 Zoom Use 0% Tactical HUD 1 Map Filters NONE Filters NONE Steam 1 RUN: d9eac6cb-c5fd-4fee-93a4-c258dbe78497